bitfinex/quotes_SOLUSD_20240726
["timestamp","ask_amount","ask_price","bid_price","bid_amount"]
[1721993607387,27.00616234,178.48,178.47,1.48974195]
[1721993607790,13.45616234,178.48,178.47,1.48974195]
[1721993608370,7.85336234,178.48,178.47,1.48974195]
[1721993608590,25.88760467,178.48,178.47,1.48974195]
[1721993610802,19.1528,178.48,178.47,1.48974195]
[1721993614917,64.1531,178.47,178.46,0.73251611]
[1721993615074,5.6041,178.44,178.43,9.62252801]
[1721993615273,19.1541,178.44,178.43,9.62252801]
[1721993615696,5.6041,178.44,178.43,9.62252801]
[1721993616579,15.12515767,178.49,178.43,9.62252801]
[1721993616785,13.55,178.47,178.43,9.62252801]
[1721993616984,1.11855767,178.46,178.43,9.62252801]
[1721993617695,14.66855767,178.47,178.43,9.62252801]
[1721993617909,1.11855767,178.48,178.43,9.62252801]
[1721993618079,13.55,178.48,178.43,9.62252801]
[1721993618494,5.6033,178.47,178.43,9.62252801]
[1721993618712,5.6033,178.47,178.43,23.17252801]
[1721993619906,5.6033,178.47,178.43,9.62252801]
[1721993620077,5.6035,178.46,178.43,9.62252801]
[1721993620593,5.6038,178.45,178.43,9.62252801]
[1721993621106,5.6035,178.46,178.43,9.62252801]
[1721993622695,5.6032,178.47,178.43,9.62252801]
[1721993623221,5.6039,178.45,178.43,9.62252801]
[1721993623795,19.1535,178.46,178.43,9.62252801]
[1721993624294,5.6041,178.44,178.43,9.62252801]
[1721993624497,13.55,178.45,178.43,9.62252801]
[1721993624689,5.6041,178.44,178.43,9.62252801]
[1721993625091,19.1541,178.44,178.43,9.62252801]
[1721993626610,5.6037,178.46,178.43,9.62252801]
[1721993626809,19.1537,178.46,178.43,9.62252801]
[1721993627210,5.6038,178.45,178.43,9.62252801]
[1721993627890,19.1535,178.46,178.43,9.62252801]
[1721993628483,13.55,178.46,178.43,9.62252801]
[1721993628689,5.6038,178.45,178.43,9.62252801]
[1721993629416,5.6035,178.46,178.43,9.62252801]
[1721993629920,5.6039,178.45,178.43,9.62252801]
[1721993632129,5.6035,178.46,178.43,9.62252801]
[1721993633125,5.6038,178.45,178.43,9.62252801]
[1721993633718,1.11855767,178.5,178.44,29.3091]
[1721993633920,13.55,178.49,178.44,15.7591]
[1721993634124,5.6032,178.47,178.44,15.7591]
[1721993637129,13.55,178.49,178.45,13.55]
[1721993637130,5.6026,178.49,178.45,13.55]
[1721993637297,6.82191573,178.54,178.45,13.55]
[1721993637298,13.55,178.5,178.45,13.55]
[1721993637505,6.73519836,178.49,178.45,13.55]
[1721993638128,6.73519836,178.49,178.44,15.7591]
[1721993638129,6.73519836,178.49,178.46,13.55]
[1721993638335,5.6015,178.53,178.48,13.55]
[1721993638627,6.73418896,178.52,178.49,13.55]
[1721993639323,19.151,178.54,178.49,13.55]
[1721993639495,6.73338073,178.53,178.49,13.55]
[1721993640798,6.73338073,178.53,178.5,13.55]
[1721993640999,6.73338073,178.53,178.51,13.55]
[1721993641223,19.1505,178.56,178.51,13.55]
[1721993641532,6.73331841,178.55,178.51,13.55]
[1721993645026,6.73331841,178.55,178.5,15.4466]
[1721993645027,20.28331841,178.55,178.5,15.4466]
[1721993645336,5.6016,178.52,178.5,15.4466]
[1721993645504,14.66855767,178.54,178.5,15.4466]
[1721993645707,25.88448317,178.53,178.5,15.4466]
[1721993645945,13.45334084,178.52,178.47,13.55]
[1721993646123,7.85174084,178.51,178.47,13.55]
[1721993646305,1.11855767,178.51,178.47,13.55]
[1721993646815,1.11855767,178.52,178.47,13.55]
[1721993647023,6.73382993,178.51,178.47,13.55]
[1721993647327,6.73382993,178.5,178.47,13.55]
[1721993647526,19.1513,178.53,178.47,13.55]
[1721993647527,6.73382993,178.52,178.47,13.55]
[1721993647730,6.73391253,178.51,178.47,13.55]
[1721993647926,6.73391253,178.52,178.47,13.55]
[1721993648129,6.73391253,178.51,178.47,13.55]
[1721993648327,6.73391253,178.52,178.47,13.55]
[1721993648531,7.8524702,178.51,178.47,13.55]
[1721993648825,6.73391253,178.5,178.47,13.55]
[1721993649429,13.55,178.53,178.48,13.55]
[1721993649635,6.73391108,178.52,178.48,13.55]
[1721993650907,6.73391108,178.52,178.46,15.9066]
[1721993651108,6.73391108,178.52,178.48,13.55]
[1721993651833,6.73391108,178.51,178.48,13.55]
[1721993652144,6.73391108,178.5,178.46,15.9066]
[1721993652321,13.55,178.53,178.47,13.55]
[1721993652631,6.73364918,178.52,178.47,13.55]
[1721993655603,6.73364918,178.52,178.49,13.55]
[1721993655817,13.55,178.55,178.49,13.55]
[1721993656016,6.73348314,178.54,178.49,13.55]
[1721993658316,6.73348314,178.54,178.51,13.55]
[1721993658511,20.26865767,178.57,178.51,13.55]
[1721993658743,6.73238811,178.56,178.51,13.55]
[1721993659122,20.28238811,178.56,178.5,13.55]
[1721993659327,21.40094578,178.55,178.49,13.55]
[1721993659648,6.73238811,178.54,178.5,13.55]
[1721993660233,13.55,178.57,178.51,13.55]
[1721993660440,13.55,178.57,178.52,13.55]
[1721993660441,6.73244712,178.56,178.52,13.55]
[1721993664144,6.73244712,178.56,178.47,13.55]
[1721993664145,6.73244712,178.56,178.55,13.55]
[1721993664349,5.5985,178.62,178.55,13.55]
[1721993664559,6.73140248,178.61,178.56,13.55]
[1721993664864,6.73140248,178.61,178.57,13.55]
[1721993665366,12.33020248,178.61,178.57,13.55]
[1721993665668,6.73140248,178.6,178.57,13.55]
[1721993666248,12.33050248,178.6,178.57,13.55]
[1721993666657,6.73140248,178.59,178.57,13.55]
[1721993667747,6.73140248,178.59,178.56,13.55]
[1721993668960,6.73140248,178.61,178.56,13.55]
[1721993669164,6.73166179,178.6,178.57,13.55]
[1721993669543,6.73166179,178.61,178.57,13.55]
[1721993670065,12.33036179,178.61,178.57,13.55]
[1721993670249,6.73166179,178.6,178.57,13.55]
[1721993671270,6.73166179,178.6,178.58,13.55]
[1721993671466,6.73166179,178.6,178.59,13.55]
[1721993671645,6.73166179,178.62,178.59,13.55]
[1721993672573,6.73166179,178.61,178.59,13.55]
[1721993672777,6.73166179,178.63,178.59,13.55]
[1721993673571,6.73166179,178.63,178.6,13.55]
[1721993674679,6.73166179,178.63,178.61,16.054]
[1721993674862,1.11855767,178.71,178.61,16.054]
[1721993675046,20.2793585,178.7,178.64,13.55]
[1721993675244,20.2793585,178.69,178.64,13.55]
[1721993675472,12.3259585,178.68,178.63,13.55]
[1721993675672,26.99511617,178.67,178.61,16.054]
[1721993675862,6.7293585,178.66,178.61,29.604]
[1721993676070,6.7293585,178.66,178.62,13.55]
[1721993676263,6.7293585,178.65,178.63,13.55]
[1721993676475,13.55,178.69,178.63,13.55]
[1721993676476,6.7293585,178.68,178.63,13.55]
[1721993676781,6.7293585,178.68,178.61,16.054]
[1721993676782,20.2793585,178.68,178.62,13.55]
[1721993676964,6.7293585,178.67,178.62,13.55]
[1721993677554,6.7293585,178.67,178.63,13.55]
[1721993677754,6.7293585,178.68,178.63,13.55]
[1721993678466,6.7293585,178.68,178.64,13.55]
[1721993678667,19.146,178.7,178.64,13.55]
[1721993678668,6.7293585,178.67,178.64,13.55]
[1721993678865,6.7293585,178.69,178.64,13.55]
[1721993679082,6.7293585,178.68,178.63,13.55]
[1721993682086,6.7293585,178.68,178.65,13.55]
[1721993682262,6.7293585,178.67,178.66,13.55]
[1721993682463,6.7293585,178.71,178.66,13.55]
[1721993682974,20.2793585,178.71,178.65,13.55]
[1721993683181,6.7293585,178.7,178.65,13.55]
[1721993684892,6.7293585,178.7,178.66,13.55]
[1721993685064,6.7293585,178.69,178.66,13.55]
[1721993685264,19.1455,178.72,178.66,13.55]
[1721993685265,6.7293585,178.71,178.66,13.55]
[1721993686391,12.3250585,178.71,178.66,13.55]
[1721993686695,6.7293585,178.7,178.65,13.55]
[1721993686868,20.2793585,178.7,178.65,13.55]
[1721993687369,6.7293585,178.69,178.65,13.55]
[1721993689703,6.7293585,178.69,178.68,13.55]
[1721993690304,13.55,178.75,178.68,13.55]
[1721993690483,6.72791766,178.74,178.69,13.55]
[1721993691077,6.72791766,178.74,178.7,13.55]
[1721993691473,6.72791766,178.73,178.7,13.55]
[1721993691679,6.72791766,178.75,178.7,13.55]
[1721993692183,25.87231766,178.75,178.7,13.55]
[1721993692407,6.72791766,178.74,178.7,13.55]
[1721993692702,35.61746456,178.79,178.66,22.5662]
[1721993692703,16.4815,178.84,178.73,13.55]
[1721993692906,13.55,178.81,178.76,13.55]
[1721993693069,6.72559387,178.8,178.76,13.55]
[1721993695650,6.72559387,178.8,178.67,1.1187967]
[1721993695651,6.72559387,178.8,178.78,13.55]
[1721993695775,6.72559387,178.82,178.78,13.55]
[1721993695976,6.72494382,178.81,178.78,13.55]
[1721993696284,6.72494382,178.82,178.78,13.55]
[1721993696491,6.72494382,178.81,178.77,13.55]
[1721993696706,6.72494382,178.82,178.77,13.55]
[1721993698716,19.1419,178.83,178.77,13.55]
[1721993701189,5.5919,178.83,178.77,13.55]
[1721993701391,19.1419,178.83,178.77,13.55]
[1721993701590,6.72428199,178.82,178.77,13.55]
[1721993702720,25.86648199,178.82,178.75,16.5088]
[1721993703015,13.55,178.8,178.75,30.0588]
[1721993704499,5.5922,178.82,178.75,30.0588]
[1721993704810,20.27482721,178.81,178.75,30.0588]
[1721993705009,19.1426,178.81,178.75,30.0588]
[1721993705196,19.1426,178.81,178.75,16.5088]
[1721993705597,5.5922,178.82,178.76,13.55]
[1721993705806,19.1422,178.82,178.76,13.55]
[1721993706119,13.55,178.82,178.76,13.55]
[1721993706985,19.1422,178.82,178.76,13.55]
[1721993707491,13.55,178.82,178.76,13.55]
[1721993708313,19.1422,178.82,178.76,13.55]
[1721993709021,5.5922,178.82,178.77,13.55]
[1721993709501,19.1419,178.83,178.78,13.55]
[1721993710303,6.7244379,178.82,178.78,13.55]
[1721993711130,5.5916,178.84,178.79,13.55]
[1721993711293,6.72427709,178.83,178.79,13.55]
[1721993711912,12.31617709,178.83,178.79,13.55]
[1721993712093,5.5913,178.85,178.79,13.55]
[1721993712294,6.7241615,178.84,178.8,13.55]
[1721993712702,12.3157615,178.84,178.79,13.55]
[1721993712903,5.5916,178.84,178.8,13.55]
[1721993713123,5.5919,178.83,178.75,16.5088]
[1721993713603,5.5922,178.83,178.78,13.55]
[1721993713996,5.5922,178.83,178.79,13.55]
[1721993714624,19.1416,178.84,178.79,13.55]
[1721993714832,6.72403289,178.83,178.79,13.55]
[1721993716106,6.72403289,178.84,178.79,13.55]
[1721993716807,12.31583289,178.84,178.79,13.55]
[1721993717002,6.72403289,178.83,178.79,13.55]
[1721993717711,5.5918,178.84,178.79,13.55]
[1721993717904,6.72401148,178.83,178.79,13.55]
[1721993718305,6.72401148,178.84,178.79,13.55]
[1721993718529,6.72401148,178.84,178.75,17.62729215]
[1721993718530,6.72401148,178.84,178.8,13.55]
[1721993720921,6.72401148,178.84,178.81,1.11840162]
[1721993721140,6.72401148,178.84,178.8,13.55]
[1721993721743,12.31561148,178.84,178.8,13.55]
[1721993722048,6.72401148,178.83,178.8,13.55]
[1721993722341,6.72401148,178.83,178.75,17.6271293]
[1721993722518,6.72401148,178.83,178.75,16.5088]
[1721993722722,6.72401148,178.83,178.8,13.55]
[1721993723449,20.27401148,178.83,178.75,16.5088]
[1721993723637,12.31621148,178.82,178.77,13.55]
[1721993723834,6.72401148,178.81,178.75,16.5088]
[1721993724033,20.27401148,178.81,178.75,16.5088]
[1721993724350,6.72401148,178.8,178.76,13.55]
[1721993725018,5.5935,178.78,178.71,15.628]
[1721993725216,19.1435,178.78,178.72,13.55]
[1721993725523,13.55,178.78,178.72,13.55]
[1721993726349,6.72542332,178.77,178.72,13.55]
[1721993727042,6.72542332,178.77,178.73,13.55]
[1721993727621,6.72542332,178.76,178.73,13.55]
[1721993727820,6.72542332,178.78,178.73,13.55]
[1721993728541,6.72542332,178.78,178.74,13.55]
[1721993728847,6.72542332,178.78,178.75,13.55]
[1721993729146,6.72542332,178.77,178.75,13.55]
[1721993729448,6.72542332,178.76,178.74,13.55]
[1721993729640,19.1428,178.8,178.74,13.55]
[1721993729641,20.27542332,178.79,178.74,13.55]
[1721993729829,6.72542332,178.78,178.74,13.55]
[1721993730751,6.72542332,178.77,178.74,13.55]
[1721993730964,6.72542332,178.76,178.74,13.55]
[1721993731248,13.55,178.8,178.74,13.55]
[1721993731446,6.72541704,178.79,178.74,13.55]
[1721993735233,20.27541704,178.79,178.71,15.628]
[1721993735550,19.1438,178.77,178.71,15.628]
[1721993735752,20.27541704,178.76,178.71,29.178]
[1721993735957,6.72541704,178.75,178.71,29.178]
[1721993737764,6.72541704,178.75,178.72,13.55]
[1721993738058,6.72541704,178.74,178.72,13.55]
[1721993738255,6.72541704,178.73,178.72,13.55]
[1721993738455,6.72541704,178.77,178.72,13.55]
[1721993738767,6.72541704,178.76,178.72,13.55]
[1721993739062,6.72541704,178.75,178.73,13.55]
[1721993739252,6.72541704,178.74,178.73,13.55]
[1721993740339,20.27541704,178.8,178.73,13.55]
[1721993740529,6.72541704,178.79,178.75,13.55]
[1721993741157,12.31861704,178.79,178.74,13.55]
[1721993741359,6.72541704,178.78,178.74,13.55]
[1721993742043,6.72541704,178.77,178.74,13.55]
[1721993742245,6.72541704,178.76,178.74,13.55]
[1721993742449,6.72541704,178.79,178.74,13.55]
[1721993742639,6.72541704,178.78,178.74,13.55]
[1721993742839,6.72541704,178.77,178.74,13.55]
[1721993743141,6.72541704,178.76,178.71,15.628]
[1721993743444,6.72541704,178.75,178.74,13.55]
[1721993744030,6.72541704,178.79,178.74,13.55]
[1721993744233,6.72541704,178.79,178.75,13.55]
[1721993744964,6.72541704,178.78,178.75,13.55]
[1721993745260,6.72541704,178.77,178.75,13.55]
[1721993745456,6.72541704,178.76,178.75,13.55]
[1721993745659,6.72541704,178.79,178.75,13.55]
[1721993745862,6.72541704,178.78,178.75,13.55]
[1721993746065,6.72541704,178.79,178.75,13.55]
[1721993747262,6.72541704,178.78,178.71,15.628]
[1721993747445,6.72541704,178.78,178.75,13.55]
[1721993747641,6.72541704,178.77,178.75,13.55]
[1721993747858,6.72541704,178.79,178.75,13.55]
[1721993748162,6.72541704,178.78,178.75,13.55]
[1721993748334,6.72541704,178.77,178.75,13.55]
[1721993748533,12.31851704,178.79,178.75,13.55]
[1721993748734,6.72541704,178.78,178.74,13.55]
[1721993753273,6.72541704,178.77,178.74,13.55]
[1721993753460,6.72541704,178.79,178.74,13.55]
[1721993753661,6.72541704,178.78,178.74,13.55]
[1721993753963,6.72541704,178.77,178.74,13.55]
[1721993754273,6.72541704,178.76,178.74,13.55]
[1721993754447,6.72541704,178.75,178.74,13.55]
[1721993754646,6.72541704,178.79,178.74,13.55]
[1721993754863,6.72541704,178.78,178.74,13.55]
[1721993755072,6.72541704,178.77,178.74,13.55]
[1721993755373,19.1429,178.8,178.74,13.55]
[1721993755374,6.72541704,178.76,178.74,13.55]
[1721993755560,6.72541704,178.79,178.74,13.55]
[1721993755764,6.72541704,178.78,178.74,13.55]
[1721993756072,6.72541704,178.77,178.74,13.55]
[1721993756277,6.72541704,178.79,178.74,13.55]
[1721993756573,6.72541704,178.78,178.74,13.55]
[1721993756772,6.72541704,178.77,178.74,13.55]
[1721993756979,6.72541704,178.79,178.74,13.55]
[1721993757157,6.72541704,178.78,178.74,13.55]
[1721993757357,6.72541704,178.79,178.74,13.55]
[1721993757674,6.72541704,178.78,178.74,13.55]
[1721993757874,6.72541704,178.77,178.74,13.55]
[1721993758077,6.72541704,178.76,178.74,13.55]
[1721993758276,6.72541704,178.79,178.74,13.55]
[1721993758477,6.72541704,178.78,178.74,13.55]
[1721993758776,6.72541704,178.77,178.74,13.55]
[1721993758979,6.72541704,178.79,178.74,13.55]
[1721993759276,6.72541704,178.78,178.74,13.55]
[1721993759472,6.72541704,178.79,178.77,13.55]
[1721993759673,5.5919,178.83,178.78,13.55]
[1721993760179,5.5919,178.83,178.77,16.2555]
[1721993760180,13.55,178.83,178.77,16.2555]
[1721993760367,5.5919,178.83,178.78,13.55]
[1721993761185,5.5923,178.82,178.78,13.55]
[1721993761385,5.5923,178.82,178.77,29.8055]
[1721993762274,19.1419,178.83,178.77,29.8055]
[1721993762674,5.5923,178.82,178.77,29.8055]
[1721993764983,19.1419,178.83,178.77,29.8055]
[1721993765784,19.1419,178.83,178.77,16.2555]
[1721993765785,13.55,178.82,178.77,16.2555]
[1721993766291,19.1422,178.82,178.77,16.2555]
[1721993766465,35.2807322,178.82,178.77,16.2555]
[1721993767074,19.1422,178.82,178.77,16.2555]
[1721993768564,13.55,178.84,178.78,13.55]
[1721993768767,29.68765823,178.85,178.79,13.55]
[1721993768978,35.27885823,178.85,178.79,13.55]
[1721993769182,16.13754827,178.84,178.79,13.55]
[1721993769383,29.68754827,178.84,178.78,13.55]
[1721993769765,13.55,178.84,178.78,13.55]
[1721993770275,6.70985767,178.85,178.77,16.2555]
[1721993770276,13.55,178.83,178.77,29.8055]
[1721993770481,13.55,178.82,178.77,29.8055]
[1721993771698,13.55,178.83,178.77,29.8055]
[1721993772679,17.25589657,178.84,178.77,29.8055]
[1721993772880,13.55,178.83,178.77,29.8055]
[1721993773195,13.55,178.83,178.67,1.11852512]
[1721993773196,1.11855767,178.82,178.72,13.55]
[1721993773492,13.55,178.76,178.71,29.3422]
[1721993776666,13.55,178.76,178.71,15.7922]
[1721993777048,13.55,178.76,178.7,6.4663]
[1721993777049,13.55,178.74,178.68,13.55]
[1721993779218,13.55,178.73,178.66,6.5695]
[1721993779577,13.55,178.73,178.68,13.55]
[1721993781528,13.55,178.75,178.7,13.55]
[1721993781697,13.55,178.76,178.7,13.55]
[1721993782331,13.55,178.75,178.7,13.55]
[1721993783423,13.55,178.75,178.69,13.55]
[1721993783721,13.55,178.75,178.7,13.55]
[1721993784389,13.55,178.75,178.69,13.55]
[1721993785315,13.55,178.75,178.7,13.55]
[1721993785494,19.1441,178.76,178.7,13.55]
[1721993786601,13.55,178.76,178.7,13.55]
[1721993787716,5.5944,178.75,178.7,13.55]
[1721993795322,5.5941,178.76,178.71,13.55]
[1721993795514,0.97001346,178.78,178.66,7.68854099]
[1721993795515,0.97001346,178.78,178.73,13.55]
[1721993795715,19.1432,178.79,178.73,13.55]
[1721993795915,19.1432,178.79,178.74,13.55]
[1721993796724,5.5934,178.78,178.74,13.55]
[1721993800434,5.5934,178.78,178.73,13.55]
[1721993806947,13.55,178.78,178.72,13.55]
[1721993807138,5.5943,178.76,178.72,13.55]
[1721993807537,5.5945,178.75,178.71,13.55]
[1721993814758,5.5945,178.75,178.7,16.1091]
[1721993814960,5.5945,178.75,178.7,29.6591]
[1721993815138,5.5944,178.75,178.7,29.6591]
[1721993815838,13.55,178.76,178.7,29.6591]
[1721993816044,5.5945,178.75,178.7,13.55]
[1721993816246,6.71305767,178.75,178.7,13.55]
[1721993816540,19.1445,178.75,178.69,13.55]
[1721993818339,13.55,178.75,178.69,13.55]
[1721993819346,14.66855767,178.75,178.69,13.55]
[1721993821168,20.26295767,178.75,178.66,22.939]
[1721993821354,19.1444,178.75,178.69,13.55]
[1721993821659,13.55,178.75,178.69,13.55]
[1721993821863,19.1445,178.75,178.69,13.55]
[1721993822669,13.55,178.74,178.68,13.55]
[1721993824051,14.66855767,178.74,178.68,13.55]
[1721993824259,1.11855767,178.73,178.68,13.55]
[1721993824652,19.1447,178.74,178.68,13.55]
[1721993825070,13.55,178.73,178.66,22.939]
[1721993825288,13.55,178.7,178.64,13.55]
[1721993825874,14.66855767,178.7,178.64,13.55]
[1721993826200,13.55,178.69,178.62,16.0424]
[1721993826360,5.5957,178.71,178.61,13.55]
[1721993826361,13.55,178.66,178.61,13.55]
[1721993827485,1.11855767,178.7,178.58,1.11954855]
[1721993827684,1.11855767,178.7,178.63,13.55]
[1721993827993,20.8695,178.71,178.63,13.55]
[1721993827994,13.55,178.69,178.63,13.55]
[1721993828358,14.66855767,178.7,178.64,13.55]
[1721993828563,13.55,178.73,178.67,13.55]
[1721993828760,5.5947,178.74,178.67,13.55]
[1721993828964,13.55,178.73,178.67,13.55]
[1721993829163,29.9032,178.75,178.7,13.55]
[1721993829468,6.2107,178.77,178.71,13.55]
[1721993829469,5.5937,178.77,178.71,13.55]
[1721993829687,19.1437,178.77,178.71,13.55]
[1721993830072,13.55,178.77,178.72,13.55]
[1721993830389,19.1437,178.77,178.72,13.55]
[1721993831979,19.1437,178.77,178.71,13.55]
[1721993832494,5.5937,178.77,178.72,13.55]
[1721993832702,5.5937,178.77,178.73,13.55]
[1721993834193,5.5934,178.78,178.74,13.55]
[1721993834694,5.5938,178.77,178.74,13.55]
[1721993835867,5.5935,178.78,178.73,13.55]
[1721993836374,13.55,178.81,178.75,13.55]
[1721993837690,5.593,178.8,178.75,13.55]
[1721993837887,19.143,178.8,178.75,13.55]
[1721993840170,19.143,178.8,178.71,22.1788]
[1721993840374,5.5932,178.79,178.75,13.55]
[1721993840776,19.1429,178.8,178.75,13.55]
[1721993841994,5.5929,178.8,178.75,13.55]
[1721993843979,16.2982,178.87,178.79,13.55]
[1721993844189,16.2982,178.87,178.76,1.11874496]
[1721993844190,32.43306783,178.87,178.8,13.55]
[1721993844399,5.5912,178.85,178.8,13.55]
[1721993844772,19.1412,178.85,178.8,13.55]
[1721993844988,13.55,178.85,178.8,13.55]
[1721993845189,13.55,178.85,178.79,13.55]
[1721993845494,5.5916,178.84,178.79,13.55]
[1721993847906,5.5916,178.84,178.8,13.55]
[1721993849886,5.5916,178.84,178.79,13.55]
[1721993850096,19.1413,178.85,178.79,13.55]
[1721993850407,5.5913,178.85,178.81,13.55]
[1721993851886,8.76843425,178.88,178.81,13.55]
[1721993852102,13.55,178.86,178.8,13.55]
[1721993852271,13.55,178.86,178.81,13.55]
[1721993852475,5.5913,178.85,178.81,13.55]
[1721993854083,0.8043448,178.89,178.81,13.55]
[1721993854393,13.55,178.88,178.82,13.55]
[1721993854585,0.8043448,178.89,178.77,7.21733026]
[1721993854586,14.3543448,178.89,178.83,13.55]
[1721993854786,5.5904,178.88,178.83,13.55]
[1721993855207,0.8043448,178.89,178.83,13.55]
[1721993855383,5.5904,178.88,178.83,13.55]
[1721993855701,5.5907,178.87,178.82,13.55]
[1721993856020,5.5909,178.86,178.82,13.55]
[1721993856811,5.5907,178.87,178.82,13.55]
[1721993858619,5.591,178.86,178.82,13.55]
[1721993860894,5.591,178.86,178.81,13.55]
[1721993862205,19.1406,178.87,178.81,13.55]
[1721993862509,13.55,178.86,178.77,6.099]
[1721993862696,14.66855767,178.86,178.8,13.55]
[1721993862896,5.5915,178.85,178.8,13.55]
[1721993865217,19.141,178.86,178.8,13.55]
[1721993865697,13.55,178.85,178.8,13.55]
[1721993866017,19.1413,178.85,178.79,13.55]
[1721993867524,13.55,178.82,178.75,15.2675]
[1721993867693,14.66855767,178.82,178.76,13.55]
[1721993867893,13.55,178.81,178.75,28.8175]
[1721993868715,13.55,178.82,178.76,13.55]
[1721993871228,5.5919,178.83,178.76,13.55]
[1721993871529,13.55,178.83,178.78,13.55]
[1721993872424,13.55,178.84,178.78,13.55]
[1721993872602,13.55,178.83,178.78,13.55]
[1721993873322,13.55,178.84,178.78,13.55]
[1721993873905,13.55,178.83,178.78,13.55]
[1721993874117,5.5915,178.85,178.78,13.55]
[1721993874317,13.55,178.84,178.78,13.55]
[1721993874499,13.55,178.84,178.79,13.55]
[1721993875434,19.1415,178.85,178.79,13.55]
[1721993876309,19.1416,178.84,178.79,13.55]
[1721993876942,13.55,178.83,178.78,13.55]
[1721993878208,19.1416,178.84,178.78,13.55]
[1721993879039,13.55,178.84,178.78,13.55]
[1721993879210,19.1413,178.85,178.79,13.55]
[1721993879410,5.5903,178.88,178.82,13.55]
[1721993879816,19.1403,178.88,178.82,13.55]
[1721993880447,0.8043448,178.89,178.84,13.55]
[1721993880609,19.9444448,178.89,178.84,13.55]
[1721993880947,6.3944448,178.89,178.84,13.55]
[1721993881537,6.3944448,178.89,178.85,13.55]
[1721993881707,6.3944448,178.89,178.86,13.55]
[1721993882030,0.8043448,178.89,178.86,13.55]
[1721993882425,6.3943448,178.89,178.84,13.55]
[1721993882630,19.9443448,178.89,178.83,13.55]
[1721993882824,5.5903,178.88,178.83,13.55]
[1721993883337,19.9444448,178.89,178.83,13.55]
[1721993886122,14.3543448,178.89,178.83,13.55]
[1721993886451,14.3543448,178.89,178.84,13.55]
[1721993886937,0.8043448,178.89,178.84,13.55]
[1721993887240,0.8043448,178.89,178.85,13.55]
[1721993887922,0.8043448,178.89,178.81,16.3383]
[1721993888118,14.3543448,178.89,178.83,13.55]
[1721993888441,13.55,178.88,178.83,13.55]
[1721993889636,19.9444448,178.89,178.83,13.55]
[1721993890338,14.3543448,178.89,178.83,13.55]
[1721993890936,13.55,178.88,178.83,13.55]
[1721993891444,14.3543448,178.89,178.83,13.55]
[1721993892341,0.8043448,178.89,178.83,13.55]
[1721993892527,14.3543448,178.89,178.83,13.55]
[1721993892727,0.8043448,178.89,178.84,13.55]
[1721993895258,0.8043448,178.89,178.85,13.55]
[1721993895447,0.8043448,178.89,178.87,13.55]
[1721993895636,0.8043448,178.89,178.88,14.66793027]
[1721993895826,0.8043448,178.89,178.88,13.55]
[1721993898948,0.8043448,178.89,178.87,13.55]
[1721993900151,0.8043448,178.89,178.88,13.55]
[1721993906044,0.8043448,178.89,178.88,14.66772416]
[1721993907879,0.8043448,178.89,178.88,13.55]
[1721993909473,0.8043448,178.89,178.88,58.55]
[1721993910347,0.8043448,178.89,178.88,78.55]
[1721993913984,0.8043448,178.89,178.88,65.0]